[Event "58th Akiba Rubinstein A 2022"]
[Site "Polanica-Zdroj"]
[Date "2022.08.13"]
[Round "1.9"]
[White "Antoniewicz, Jakub"]
[Black "Betkowski, Andrzej"]
[Result "1/2-1/2"]
[ECO "A40"]
[WhiteElo "1931"]
[BlackElo "2063"]
[Annotator "NA RC"]
[PlyCount "92"]
[EventDate "2022.08.13"]
[EventCountry "POL"]
[SourceTitle "playchess.com"]
[Source "ChessBase"]
[SourceQuality "1"]
[TimeControl "40/5400+30:1800+30"]

1. d4 {[%emt 0:00:04]} g6 {[%emt 0:00:11]} 2. Nc3 {[%emt 0:00:41]} Bg7 {[%emt 0:00:57]} 3. e4 {[%emt 0:01:27]} c6 {[%emt 0:00:35]} 4. h4 {[%emt 0:05:28]} d5 {[%emt 0:08:52]} 5. exd5 {[%emt 0:11:56]} cxd5 {[%emt 0:01:55]} 6. Bb5+ {[%emt 0:02:23]} Nc6 {[%emt 0:08:37]} 7. h5 {[%emt 0:05:02]} Nf6 {[%emt 0:04:52]} 8. h6 {[%emt 0:03:55]} Bf8 {[%emt 0:00:54]} 9. Nge2 {[%emt 0:01:28]} e6 {[%emt 0:06:37]} 10. Bg5 {[%emt 0:02:22]} Be7 {[%emt 0:02:44]} 11. Qd2 {[%emt 0:05:23]} Bd7 {[%emt 0:06:52]} 12. O-O-O {[%emt 0:07:06]} a6 {[%emt 0:10:42]} 13. Bd3 {[%emt 0:02:39]} b5 {[%emt 0:08:50]} 14. Rde1 {[%emt 0:09:49]} O-O {[%emt 0:07:02]} 15. Kb1 {[%emt 0:13:55]} b4 {[%emt 0:05:17]} 16. Nd1 {[%emt 0:00:01]} Ne4 {[%emt 0:00:35]} 17. Bxe4 {[%emt 0:00:01]} Bxg5 {[%emt 0:00:22]} 18. f4 {[%emt 0:00:04]} Bf6 {[%emt 0:00:54]} 19. Bf3 {[%emt 0:01:33]} Qb6 {[%emt 0:01:21]} 20. Ne3 {[%emt 0:06:59]} Nxd4 {[%emt 0:03:11]} 21. Bxd5 {[%emt 0:00:55]} Rad8 {[%emt 0:03:14]} 22. Ng4 {[%emt 0:05:00]} Bh8 {[%emt 0:00:48]} 23. Nxd4 {[%emt 0:00:32]} Bxd4 {[%emt 0:00:47]} 24. Bc4 {[%emt 0:03:53]} Bc6 {[%emt 0:02:57]} 25. Qe2 {[%emt 0:00:16]} Bd5 {[%emt 0:02:43]} 26. Ne5 {[%emt 0:02:24]} a5 {[%emt 0:01:54]} 27. Rd1 {[%emt 0:03:01]} a4 {[%emt 0:01:19]} 28. Bxd5 {[%emt 0:01:56]} Rxd5 {[%emt 0:00:23]} 29. Nf3 {[%emt 0:01:22]} Rfd8 {[%emt 0:01:43]} 30. Nxd4 {[%emt 0:02:56]} Rxd4 {[%emt 0:00:09]} 31. Rde1 {[%emt 0:00:39]} Qd6 {[%emt 0:01:25]} 32. g3 {[%emt 0:00:42]} a3 {[%emt 0:01:47]} 33. Qf3 {[%emt 0:00:26]} Rd2 {[%emt 0:00:51]} 34. Rc1 {[%emt 0:00:16]} Qd4 {[%emt 0:01:58]} 35. Qb3 {[%emt 0:00:27]} Qd6 {[%emt 0:01:20]} 36. Rhf1 {[%emt 0:00:10]} f6 {[%emt 0:00:51]} 37. g4 {[%emt 0:00:23]} Kf7 {[%emt 0:00:14]} 38. f5 {[%emt 0:00:13]} Qe5 {[%emt 0:02:05]} 39. fxe6+ {[%emt 0:00:56]} Qxe6 {[%emt 0:00:57]} 40. g5 {[%emt 0:00:00]} f5 {[%emt 0:00:00]} 41. Qxb4 {[%emt 0:03:18]} axb2 {[%emt 0:04:03]} 42. Rce1 {[%emt 0:00:57]} Qd6 {[%emt 0:05:21]} 43. Qb3+ {[%emt 0:06:08]} Kf8 {[%emt 0:03:14]} 44. Qb7 {[%emt 0:08:45]} Rd7 {[%emt 0:02:17]} 45. Qc8+ {[%emt 0:00:04]} Rd8 {[%emt 0:00:10]} 46. Qb7 {[%emt 0:00:04]} Rd7 {[%emt 0:00:06]} 1/2-1/2

[Event "58th Akiba Rubinstein A 2022"]
[Site "Polanica-Zdroj"]
[Date "2022.08.13"]
[Round "1.10"]
[White "Barwinska, Ewa"]
[Black "Hetzer, Volkhard"]
[Result "1/2-1/2"]
[ECO "C16"]
[WhiteElo "1940"]
[BlackElo "1921"]
[Annotator "TA"]
[PlyCount "102"]
[EventDate "2022.08.13"]
[EventCountry "POL"]
[SourceTitle "playchess.com"]
[Source "ChessBase"]
[SourceQuality "1"]
[TimeControl "40/5400+30:1800+30"]

{[%evp 10,102,88,49,60,58,64,30,31,27,35,36,34,27,34,37,47,29,47,22,29,21,14,24,15,18,34,3,19,11,22,22,29,18,14,10,81,47,49,27,28,3,29,27,88,21,75,0,8,-35,-35,-80,0,0,24,-14,-14,-87,-83,-85,-85,-150,-139,-181,-175,-173,-173,-173,-169,-180,-172,-258,-266,-303,-301,-315,-303,-295,-172,-168,-145,-179,-179,-119,-91,-91,-91,-106,-76,-89,-64,-62,-64,-64,-30]} 1. e4 {[%emt 0:00:03]} e6 {[%emt 0:00:09]} 2. d4 {[%emt 0:00:10]} d5 {[%emt 0:00:04]} 3. Nc3 {[%emt 0:00:13]} Bb4 {[%emt 0:00:27]} 4. e5 {[%emt 0:00:11]} Qd7 {[%emt 0:00:16]} 5. a3 {[%emt 0:06:51]} Bf8 {[%emt 0:00:11]} 6. f4 {[%emt 0:05:28] White is more active.} Ne7 {[%emt 0:00:33] C16: French: 3 Nc3 Bb4 4 e5: Lines without ...c5.} 7. Nf3 {[%emt 0:01:07]} b6 {[%emt 0:01:16]} 8. Bd3 {[%emt 0:03:00]} Ba6 {[%emt 0:16:13] White has an edge.} 9. Bxa6 {[%emt 0:02:42]} Nxa6 {[%emt 0:00:07]} 10. Qd3 {[%emt 0:00:11]} Nb8 {[%emt 0:00:05]} 11. Be3 {[%emt 0:06:17] [#]} Nbc6 $146 {[%emt 0:04:32]} ({Predecessor:} 11... Nf5 12. Bf2 h5 13. O-O-O c5 14. Nh4 c4 15. Qe2 Ne7 16. h3 g6 17. g4 b5 {½-½ (31) Hardarson,J (1688)-Skoien,H (2121) Reykjavik 2012}) 12. Bf2 {[%emt 0:06:00]} Na5 {[%emt 0:06:58]} 13. O-O {[%emt 0:16:38]} h5 {[%emt 0:03:16]} 14. Ne2 {[%emt 0:06:54]} Nf5 {[%emt 0:01:21]} 15. Nh4 {[%emt 0:04:01]} g6 {[%emt 0:18:31]} 16. Nxf5 {[%emt 0:01:50]} gxf5 {[%emt 0:01:49]} 17. Bh4 {[%emt 0:04:43]} Be7 {[%emt 0:00:13]} 18. Bxe7 {[%emt 0:04:53]} (18. Be1 $5 {[%cal Re1a5]}) 18... Qxe7 {[%emt 0:05:01]} 19. Kh1 {[%emt 0:03:49]} Qd7 {[%emt 0:11:11]} 20. Ng1 {[%emt 0:02:19]} c5 {[%emt 0:06:23]} 21. dxc5 {[%emt 0:02:00]} bxc5 {[%emt 0:00:06]} 22. b4 $36 {[%emt 0:03:16][%mdl 2048] White has some pressure.} c4 {[%emt 0:14:30]} (22... Nc4 $11 {remains equal.}) 23. Qf3 {[%emt 0:02:12]} Nc6 {[%emt 0:00:33]} 24. c3 {[%emt 0:00:42]} h4 {[%emt 0:03:31]} 25. Rfd1 {[%emt 0:04:02]} Ne7 {[%emt 0:00:36]} 26. a4 {[%emt 0:01:27]} Ng6 {[%emt 0:00:07]} (26... Nc6 $11) 27. Nh3 {[%emt 0:00:38]} ({Better is} 27. Ne2 $16) 27... Kf8 {[%emt 0:01:18]} (27... a5 $11) 28. b5 {[%emt 0:03:07]} ({White should play} 28. Ng1 $16) 28... Kg7 $11 {[%emt 0:00:07]} 29. Qe2 {[%emt 0:01:07]} Rhd8 {[%emt 0:01:44]} 30. Qb2 {[%emt 0:03:31]} Rab8 {[%emt 0:01:53]} (30... a6 $17) 31. Qf2 {[%emt 0:01:32]} Rb6 {[%emt 0:00:40]} 32. Rab1 {[%emt 0:02:29]} Rdb8 {[%emt 0:00:10] White should prevent ...a6.} 33. Qc5 {[%emt 0:02:32]} (33. Ng5 $11) 33... a6 {[%emt 0:01:06][%cal Ba7a6,Ba6b5][%mdl 32]} 34. Qxc4 {[%emt 0:00:31]} axb5 {[%emt 0:00:05]} 35. Qd4 {[%emt 0:00:22]} (35. axb5 $142 Rxb5 36. Rbc1) 35... Qc6 $17 {[%emt 0:00:28]} ({Stronger than} 35... Ra6 36. axb5 Rxb5 37. Rbc1 $17) 36. a5 {[%emt 0:00:33]} Ra6 {[%emt 0:00:08]} 37. Qb4 {[%emt 0:00:30]} Qc7 {[%emt 0:00:31]} 38. Ra1 {[%emt 0:00:14]} Rba8 {[%emt 0:01:16][%cal Ra6a5]} 39. Qxb5 {[%emt 0:00:37]} Rxa5 {[%emt 0:00:09]} 40. Rxa5 {[%emt 0:00:00]} (40. Qb2 {was called for.}) 40... Rxa5 $19 {[%emt 0:00:00]} 41. Qb4 {[%emt 0:21:12]} Rc5 {[%emt 0:02:35]} 42. Rd3 {[%emt 0:03:02]} Rc4 {[%emt 0:00:51]} 43. Qd6 {[%emt 0:02:37]} Rxc3 {[%emt 0:08:26]} (43... Qc8 $142 44. Rd1 Rc6) 44. Qxc7 {[%emt 0:01:44]} Rxc7 {[%emt 0:00:06][%mdl 4096] Endgame KRN-KRN} 45. g3 {[%emt 0:00:30]} hxg3 {[%emt 0:09:37]} 46. hxg3 {[%emt 0:00:09]} f6 {[%emt 0:00:24]} 47. exf6+ {[%emt 0:01:04]} Kxf6 {[%emt 0:00:08]} 48. Kg2 {[%emt 0:00:58]} Rd7 {[%emt 0:01:48]} 49. Nf2 {[%emt 0:03:02]} e5 {[%emt 0:01:14]} 50. fxe5+ $1 {[%emt 0:00:04]} Nxe5 {[%emt 0:01:20]} 51. Rd4 {[%emt 0:00:13]} Nc6 {Weighted Error Value: White=0.22 (precise) /Black=0.17 (very precise)} 1/2-1/2

[Event "58th Akiba Rubinstein A 2022"]
[Site "Polanica-Zdroj"]
[Date "2022.08.13"]
[Round "1.11"]
[White "Kejna, Piotr"]
[Black "Wolanski, Michal"]
[Result "1/2-1/2"]
[ECO "B33"]
[WhiteElo "1970"]
[BlackElo "2005"]
[Annotator "TA"]
[PlyCount "151"]
[EventDate "2022.08.13"]
[EventCountry "POL"]
[SourceTitle "playchess.com"]
[Source "ChessBase"]
[SourceQuality "1"]
[TimeControl "40/5400+30:1800+30"]

{[%evp 20,151,20,4,2,4,17,2,9,1,0,0,0,0,0,0,0,0,0,-14,-16,-17,-24,-43,-24,-34,-31,-23,-49,-31,-25,-87,-50,-58,-32,-79,-73,-106,-58,-63,-61,-134,-128,-122,-77,-69,-81,-80,-86,-86,-68,-68,-11,-11,-12,-8,0,-20,0,-41,-51,-115,0,0,0,0,0,0,0,0,0,0,0,0,0,0,0,0,0,0,0,0,0,0,0,0,0,0,0,0,0,0,0,0,0,0,0,0,0,0,0,0,0,0,0,0,0,0,0,0,0,0,0,0,0,0,0,0,0,0,0,0,0,0,0,0,0,0,0,0,0,0,0,0]} 1. e4 {[%emt 0:00:04]} c5 {[%emt 0:00:09]} 2. Nf3 {[%emt 0:00:05][%cal Bg1f3,Bf3d4,Bd4b5,Bb5a3,Ba3c2][%mdl 32]} Nc6 {[%emt 0:00:08]} 3. d4 {[%emt 0:00:05]} cxd4 {[%emt 0:00:04]} 4. Nxd4 {[%emt 0:00:03]} Nf6 {[%emt 0:00:11]} 5. Nc3 {[%emt 0:00:08]} e5 {[%emt 0:00:07]} 6. Ndb5 {[%emt 0:00:06]} d6 {[%emt 0:00:07]} 7. Bg5 {[%emt 0:00:32]} a6 {[%emt 0:00:09]} 8. Na3 {[%emt 0:00:05]} b5 {[%emt 0:00:11]} 9. Nd5 {[%emt 0:00:10]} Be7 {[%emt 0:00:09]} 10. Bxf6 {[%emt 0:00:07]} Bxf6 {[%emt 0:00:06]} 11. c4 {[%emt 0:00:11]} b4 {[%emt 0:00:05] B33: Sicilian: Pelikan and Sveshnikov Variations.} 12. Nc2 {[%emt 0:00:06]} O-O {[%emt 0:00:09]} 13. g3 {[%emt 0:01:15]} a5 {[%emt 0:00:09]} 14. h4 {[%emt 0:01:53]} Be6 {[%emt 0:00:32]} 15. Bh3 {[%emt 0:03:01] 15.Bg2 is more advanced technology.} a4 {[%emt 0:02:53]} 16. Bxe6 {[%emt 0:11:26]} fxe6 {[%emt 0:00:13]} 17. Ndxb4 {[%emt 0:00:36]} Nxb4 {[%emt 0:00:10]} 18. Nxb4 {[%emt 0:00:10]} Qb6 {[%emt 0:00:17]} 19. Qd2 {[%emt 0:02:18]} Be7 {[%emt 0:01:01][%mdl 1024] Black has compensation.} 20. a3 {[%emt 0:12:56]} Rf3 {[%emt 0:00:56]} 21. Rc1 {[%emt 0:13:32][%cal Oc4c5]} Raf8 {[%emt 0:01:30][%cal Rf3f2]} 22. Rf1 {[%emt 0:01:02] [#]} Qb7 $146 {[%emt 0:01:52][%mdl 2048] White is under pressure.} ({Predecessor:} 22... d5 23. cxd5 Bc5 24. Rc3 Rxf2 25. Rxf2 Bxf2+ 26. Kd1 Bd4 27. Rc6 Qd8 28. Qe2 exd5 29. Nxd5 {0-1 (40) Kislik,E (2357)-Antal,G (2526) Budapest 2010}) 23. Qe2 $1 {[%emt 0:05:46]} Bd8 {[%emt 0:05:13] Hoping for ...Ba5.} 24. Rc3 {[%emt 0:04:16]} R3f6 {[%emt 0:00:38]} 25. Rd3 {[%emt 0:18:19]} (25. f3 $11) 25... Bb6 {[%emt 0:03:16] And now ...Bxf2+ would win.} 26. f3 {[%emt 0:00:19]} Bd4 {[%emt 0:01:13]} 27. b3 {[%emt 0:03:33]} (27. Kd1 $15) 27... axb3 {[%emt 0:06:33]} 28. Rxb3 {[%emt 0:00:05]} Bc5 {[%emt 0:00:58]} (28... h5 $17) 29. Qd3 {[%emt 0:01:31][%cal Ob4d5]} Qf7 {[%emt 0:04:36]} 30. Kd1 {[%emt 0:04:25]} ({White should play} 30. Na6 $15 Bd4 31. Kd2) 30... Qg6 $17 {[%emt 0:03:22]} 31. g4 {[%emt 0:02:22] [#]} Qxg4 $3 {[%emt 0:09:56][%mdl 512]} 32. fxg4 {[%emt 0:00:02]} Rxf1+ {[%emt 0:00:12]} 33. Kc2 {[%emt 0:00:27][%cal Bd1c2,Bc2d2,Bd2c3,Bc3b4,Bb4c5][%mdl 32]} R8f2+ {[%emt 0:00:15]} 34. Qd2 Rxd2+ {[%emt 0:00:20]} 35. Kxd2 {[%emt 0:00:07][%mdl 4096] Endgame KRB-KRN} Rf4 {[%emt 0:00:35]} (35... Rf2+ $15 36. Kd3 Rg2) 36. Nd3 $11 {[%emt 0:01:22]} Rxe4 {[%emt 0:00:27]} 37. Nxc5 {[%emt 0:00:56]} dxc5 {[%emt 0:00:07] KR-KR} 38. Kc3 {[%emt 0:03:27]} Kf7 {[%emt 0:31:04]} 39. Rb5 {[%emt 0:01:29]} Rxg4 {[%emt 0:02:11]} 40. Rxc5 {[%emt 0:00:00]} Rg3+ {[%emt 0:00:00]} ({Worse is} 40... Rxh4 41. Rxe5 Rh1 42. a4) ({Black should try} 40... Kf6 $17 41. a4 Rxh4) 41. Kb4 $1 {[%emt 0:01:12] The position is equal.} e4 {[%emt 0:02:00]} 42. Re5 {[%emt 0:08:20]} e3 {[%emt 0:00:19] [#] Threatens to win with ...Kf6.} 43. Kc5 {[%emt 0:01:47]} e2 {[%emt 0:02:43]} 44. Rxe2 {[%emt 0:00:54]} Rxa3 {[%emt 0:00:08]} 45. Kb4 {[%emt 0:04:16]} Ra1 {[%emt 0:02:24]} 46. Rf2+ {[%emt 0:02:09]} Ke7 {[%emt 0:00:22]} 47. Rg2 {[%emt 0:00:12]} g6 {[%emt 0:00:26][%cal Bg7g6,Bg6h5,Bh5h4][%mdl 32]} 48. h5 {[%emt 0:01:09]} Rb1+ {[%emt 0:04:10]} 49. Kc5 {[%emt 0:00:43]} gxh5 {[%emt 0:10:34]} 50. Rg7+ {[%emt 0:00:38]} Kf6 {[%emt 0:00:10]} 51. Rxh7 {[%emt 0:00:03]} Rh1 {[%emt 0:01:27]} 52. Kd4 {[%emt 0:04:48]} h4 {[%emt 0:01:51]} 53. c5 {[%emt 0:05:06]} e5+ {[%emt 0:09:56]} 54. Ke3 {[%emt 0:02:12]} h3 {[%emt 0:02:18]} 55. c6 {[%emt 0:03:10]} Rc1 {[%emt 0:01:38]} 56. c7 {[%emt 0:00:33]} h2 {[%emt 0:00:53]} 57. Rxh2 {[%emt 0:00:51]} Rxc7 {[%emt 0:00:14]} 58. Kd2 {[%emt 0:00:23]} Kf5 {[%emt 0:00:29]} 59. Rh3 {[%emt 0:00:18]} Ke4 {[%emt 0:00:38]} 60. Ke2 {[%emt 0:00:52]} Rc2+ {[%emt 0:00:42]} 61. Ke1 {[%emt 0:00:23]} Kd4 {[%emt 0:00:50]} 62. Ra3 {[%emt 0:00:39]} e4 {[%emt 0:00:26]} 63. Ra4+ {[%emt 0:00:38]} Ke3 {[%emt 0:00:17][%cal Rc2c1]} 64. Ra3+ {[%emt 0:00:04]} Kf4 {[%emt 0:00:12]} 65. Rb3 {[%emt 0:00:26]} e3 {[%emt 0:00:19] aiming for ...Kf3.} 66. Rb8 {[%emt 0:00:33]} Rc4 {[%emt 0:02:58]} 67. Rf8+ {[%emt 0:00:13]} Ke4 {[%emt 0:00:26]} 68. Re8+ {[%emt 0:00:32]} Kd3 {[%emt 0:00:11][%cal Rc4c1]} 69. Rd8+ {[%emt 0:00:08]} Rd4 {[%emt 0:01:11]} 70. Rxd4+ {[%emt 0:00:06]} Kxd4 {[%emt 0:00:05] KP-K} 71. Ke2 {[%emt 0:00:03]} Ke4 {[%emt 0:00:07][%cal Bd4e4,Be4f3,Bf3g3,Bg3f4][%mdl 32]} 72. Ke1 {[%emt 0:00:05]} Kf3 {[%emt 0:00:03] Strongly threatening ...e2.} (72... Kd3 $5 73. Kd1 Ke4 $11) 73. Kf1 {[%emt 0:00:04]} Kg3 {[%emt 0:00:04] White must now prevent ...Kf3.} 74. Ke2 {[%emt 0:00:05]} Kf4 {[%emt 0:00:18]} 75. Ke1 {[%emt 0:00:05]} e2 {[%emt 0:00:05] ...Kf3 is the strong threat.} (75... Ke4 $5) 76. Kxe2 {[%emt 0:00:04] Weighted Error Value: White=0.09 (flawless) /Black=0.10 (very precise)} 1/2-1/2

[Event "58th Akiba Rubinstein A 2022"]
[Site "Polanica-Zdroj"]
[Date "2022.08.13"]
[Round "1.12"]
[White "Siekanska, Zuzanna"]
[Black "Skrzyczek, Tomasz"]
[Result "0-1"]
[ECO "D18"]
[WhiteElo "1712"]
[BlackElo "1909"]
[Annotator "TA RC"]
[PlyCount "64"]
[EventDate "2022.08.13"]
[EventCountry "POL"]
[SourceTitle "playchess.com"]
[Source "ChessBase"]
[SourceQuality "1"]
[TimeControl "40/5400+30:1800+30"]

{[%evp 17,64,0,20,0,0,-23,-38,-79,-70,-73,64,100,122,14,15,2,72,56,96,64,62,0,0,0,0,-313,-106,-102,-100,-458,-462,-452,-283,-243,0,0,0,-1351,-1341,-1272,-1238,-29985,-29986,-29986,-29987,-5602,-1831,-29998,-2066]} 1. d4 {[%emt 0:00:02]} d5 {[%emt 0:00:05]} 2. c4 {[%emt 0:00:06]} c6 {[%emt 0:00:02]} 3. Nc3 {[%emt 0:00:19]} Nf6 {[%emt 0:00:05]} 4. Nf3 {[%emt 0:00:15]} dxc4 {[%emt 0:00:20]} 5. a4 {[%emt 0:01:28]} Bf5 {[%emt 0:00:06]} 6. e3 {[%emt 0:02:12]} e6 {[%emt 0:00:40]} 7. Bxc4 {[%emt 0:00:17]} Bb4 {[%emt 0:00:06]} 8. O-O {[%emt 0:01:05]} Nbd7 {[%emt 0:01:18]} 9. Qb3 {[%emt 0:02:56]} Qb6 {[%emt 0:10:00]} 10. Nd2 {[%emt 0:16:33] D18: Slav Defence: 5 a4 Bf5 6 e3.} O-O {[%emt 0:03:23] [#]} 11. Re1 $146 {[%emt 0:03:23]} ({Predecessor:} 11. Be2 a5 12. Nc4 Qc7 13. Na2 Be7 14. Nc3 e5 15. Rd1 exd4 16. exd4 Be6 17. Qc2 Nd5 18. Nxd5 Bxd5 19. Ne3 Nf6 20. Bd3 g6 {0-1 (35) Novak,I (2207)-Trbojevic,M (2331) Mali Losinj 2019}) 11... e5 {[%emt 0:15:01]} 12. Bxf7+ {[%emt 0:05:00] Black is slightly better.} Rxf7 {[%emt 0:01:11]} 13. Nc4 {[%emt 0:00:36][%csl LRb6,LRe5] [#]} Qc7 {[%emt 0:08:18]} 14. Qxb4 $14 {[%emt 0:00:45]} Ne8 {[%emt 0:06:45] Prevents Nd6.} 15. d5 {[%emt 0:06:20]} ({White should try} 15. f3 $16) 15... a5 $11 {[%emt 0:02:05]} 16. Qb3 {[%emt 0:04:16] aiming for e4.} e4 {[%emt 0:05:46]} (16... Bd3 $11 {remains equal.}) 17. Rd1 $16 {[%emt 0:14:31]} Ra6 {[%emt 0:08:29]} 18. d6 {[%emt 0:02:15]} Qd8 {[%emt 0:04:27]} 19. Rd4 {[%emt 0:02:04]} (19. Qxb7 $2 Nc5 20. Qxa6 Nxa6 $19) (19. Ne2 $14) 19... Qh4 $11 {[%emt 0:12:11] ...Nef6 is the strong threat.} 20. Qc2 {[%emt 0:06:28]} Nef6 {[%emt 0:00:57] Threatens to win with ...c5.} 21. Nd2 $2 {[%emt 0:04:00][%mdl 8192] [#]} (21. h3 $11) 21... Ng4 $2 {[%emt 0:01:51]} (21... c5 $1 $19 {and Black stays clearly on top.} 22. Rc4 (22. g3 $2 Qh3 $19) 22... Ng4) 22. Nf1 $17 {[%emt 0:01:19]} Bg6 {[%emt 0:00:33][%cal Rf7f2]} 23. g3 $2 {[%emt 0:07:32][%mdl 8192]} (23. Nd1 $17 {is more resistant.}) 23... Qh3 $19 {[%emt 0:02:33]} 24. Nxe4 {[%emt 0:01:14][%cal Oe4g5]} Nde5 {[%emt 0:10:57] ( -> ...Nf3+)} ({Avoid the trap} 24... Bxe4 $2 25. Rxe4 Rxf2 26. Qxf2 Nxf2 27. Kxf2 $19) 25. Ng5 {[%emt 0:01:29]} Qh5 $2 {[%emt 0:00:01]} 26. e4 $11 {[%emt 0:02:17] And now d7 would win.} Rxf2 $40 {[%emt 0:02:10][%mdl 128] Black mounts an attack. Really sharp!} 27. Rd2 {[%emt 0:06:16][%mdl 8192]} (27. Qb3+ $11 Bf7 28. Qxb7 Rxh2 29. Qb8+ (29. Qxa6 $2 {is a self mate.} Nf3+ 30. Nxf3 Rh1+ 31. Kg2 Qh3#) (29. Qc8+ Be8 $11) 29... Be8 30. Qb3+ Kh8 31. d7 Nxd7 32. Rxd7 Rh1+ 33. Kg2 Rh2+ 34. Kg1 Rh1+ 35. Kg2 Rh2+ 36. Kg1) 27... Rxf1+ $19 {[%emt 0:00:53][%mdl 64] Remove Defender, Decoy} 28. Kxf1 {[%emt 0:00:26]} Ne3+ {[%emt 0:00:11] Pair of Knights!} 29. Ke1 {[%emt 0:00:38]} Nxc2+ {[%emt 0:00:04]} 30. Rxc2 {[%emt 0:00:05]} Nd3+ {[%emt 0:00:12]} 31. Kd2 {[%emt 0:00:43]} Nxc1 {[%emt 0:00:25]} 32. h4 {[%emt 0:01:34]} Nb3+ {[%emt 0:00:07] Weighted Error Value: White=1.46/Black=0.67} (32... Qe2+ $142 33. Kxc1 Qe1#) 0-1

[Event "58th Akiba Rubinstein A 2022"]
[Site "Polanica-Zdroj"]
[Date "2022.08.13"]
[Round "1.13"]
[White "Nowak, Filip"]
[Black "Sliwerski, Radoslaw"]
[Result "0-1"]
[ECO "B90"]
[WhiteElo "1957"]
[BlackElo "1951"]
[Annotator "TA"]
[PlyCount "84"]
[EventDate "2022.08.13"]
[EventCountry "POL"]
[SourceTitle "playchess.com"]
[Source "ChessBase"]
[SourceQuality "1"]
[TimeControl "40/5400+30:1800+30"]

{[%evp 24,84,16,16,6,23,22,8,16,9,8,1,12,0,0,-9,0,-32,0,0,0,0,0,-18,-18,-27,-36,-21,38,30,47,50,85,68,163,174,222,209,266,202,250,-892,-891,-856,-868,-850,-840,-816,-810,-789,-782,-782,-720,-762,-32,-750,-721,-5252,-1657,-1179,-727,-724,-606]} 1. e4 {[%emt 0:00:04]} c5 {[%emt 0:00:03]} 2. Nf3 {[%emt 0:00:13]} d6 {[%emt 0:00:02]} 3. d4 {[%emt 0:00:13]} cxd4 {[%emt 0:00:04]} 4. Nxd4 {[%emt 0:00:17]} Nf6 {[%emt 0:00:03]} 5. Nc3 {[%emt 0:00:25]} a6 {[%emt 0:00:02]} 6. Be3 {[%emt 0:00:34]} e5 {[%emt 0:00:06]} 7. Nb3 {[%emt 0:00:10]} Be6 {[%emt 0:00:21]} 8. f3 {[%emt 0:00:22]} Be7 {[%emt 0:00:09]} 9. Qd2 {[%emt 0:00:06]} O-O {[%emt 0:00:49]} 10. O-O-O {[%emt 0:00:52]} b5 11. g4 {[%emt 0:00:30][%cal Bg2g4,Bg4g5][%mdl 32]} Nbd7 {[%emt 0:00:49]} 12. g5 {[%emt 0:01:59]} Nh5 $1 {[%emt 0:00:03][%mdl 4] is recently more successful than 12...b4.} 13. Nd5 {[%emt 0:02:25]} Bxd5 {[%emt 0:00:08] B90: Sicilian Najdorf: Unusual White 6th moves, 6 Be3 Ng4 and 6 Be3 e5.} 14. exd5 {[%emt 0:00:20]} f5 {[%emt 0:01:39]} 15. gxf6 {[%emt 0:01:25]} Bxf6 {[%emt 0:00:09] The position is equal.} 16. Na5 {[%emt 0:01:14]} Qc7 {[%emt 0:00:46]} 17. Nc6 {[%emt 0:01:52]} Nf4 {[%emt 0:00:43]} (17... Bd8 {seems wilder.} 18. Rg1 Nb6 19. Bd3 Nc4) 18. Bxf4 {[%emt 0:19:15]} exf4 {[%emt 0:00:01]} 19. Kb1 {[%emt 0:01:57] [#]} Rae8 $146 {[%emt 0:02:31]} ({Predecessor:} 19... Nb6 20. b3 Kh8 21. Rc1 b4 22. Bh3 Rfe8 23. Rcd1 a5 24. Qd3 Re3 25. Qf5 a4 26. Qxf4 axb3 27. cxb3 Re2 28. Rhe1 Nxd5 {0-1 (28) Skovgaard,P (2230)-Vajda,S (2401) Copenhagen 2006}) 20. Re1 {[%emt 0:20:52]} Nb6 {[%emt 0:05:55]} 21. Bd3 {[%emt 0:09:34]} Nc4 {[%emt 0:18:13]} 22. Bxc4 {[%emt 0:09:33]} (22. Qxf4 Nxb2 23. Qg4 Rxe1+ 24. Rxe1 Na4 25. Qe6+ Kh8 $17) 22... bxc4 {[%emt 0:00:15]} 23. Qxf4 {[%emt 0:07:05]} Qb6 {[%emt 0:06:24][%csl Gf6][%cal Rb6b2]} 24. b3 {[%emt 0:01:30]} cxb3 $40 {[%emt 0:01:44][%mdl 128] Black is up to no good. Chess con chili.} 25. axb3 {[%emt 0:02:51]} Qc5 {[%emt 0:00:53]} (25... Qf2 $11 26. Re6 Qc5 27. Qxd6 (27. Rxe8 Rxe8 28. Qd2 h6 $11) 27... Qc3 28. Rxf6 Rxf6) 26. Qc4 $1 $14 {[%emt 0:01:26] Strongly threatening Qxc5.} (26. Rxe8 Rxe8 27. Qc4 Qf2 $17) 26... Qf2 {[%emt 0:03:51]} 27. Re6 {[%emt 0:06:04]} Kh8 {[%emt 0:08:37]} (27... Rxe6 $2 28. dxe6 Kh8 29. e7 Bxe7 30. Nxe7 $18) 28. Qe4 {[%emt 0:03:48]} (28. Qxa6 $2 Qxf3 29. Rf1 Qc3 30. Rfxf6 gxf6 $19) (28. Rxd6 $2 Re1+ 29. Ka2 Rxh1 $19) 28... Rc8 {[%emt 0:01:58]} ({Black should play} 28... Rxe6 $14 29. dxe6 Qc5) 29. Rxd6 $18 {[%emt 0:01:16]} Qc5 {[%emt 0:01:11] [#]} (29... Qd2 $142 30. Qd3 Qxd3 31. cxd3 Rfe8) 30. Re6 $1 {[%emt 0:01:40]} ({Less strong is} 30. Rxf6 Rxf6 31. Rd1 Qd6 $14) 30... Qc3 {[%emt 0:04:03][%csl Gf6][%cal Rc3b2] [#]} 31. Ne5 $1 {[%emt 0:00:23] d6 is the strong threat.} ({Not} 31. Rxf6 Qxf6 32. Re1 Qd6 $14) 31... Rb8 {[%emt 0:00:34][%cal Ob8b3] ( -> ...Rxb3+!)} 32. Rd1 $4 {[%emt 0:03:11][%mdl 8192] [#]} (32. f4 $18) 32... Rxb3+ $1 $19 {[%emt 0:04:13][%mdl 576] Demolition} 33. cxb3 {[%emt 0:01:18]} Qxb3+ {[%emt 0:00:07]} 34. Kc1 {[%emt 0:00:33]} Qc3+ {[%emt 0:01:13]} 35. Qc2 {[%emt 0:00:21]} Bg5+ {[%emt 0:01:20][%cal Bf6g5,Bg5d2,Bd2f4][%mdl 32]} 36. Rd2 {[%emt 0:00:19]} Qa1+ {[%emt 0:00:25]} (36... Bxd2+ $2 37. Kd1 Be1 38. Qxc3 Bxc3 39. Nc6 $18) 37. Qb1 {[%emt 0:00:06]} Bxd2+ {[%emt 0:00:06]} 38. Kc2 {[%emt 0:00:13]} Qc3+ {[%emt 0:00:12]} ({Weaker is} 38... Qd4 39. Qb3 Qf2 40. Kb1 $17) 39. Kd1 {[%emt 0:00:07] Now White is beyond hope.} Bf4 $1 {[%emt 0:01:49][%csl Gf4,LRe5,LRh2][%cal Rc3d2] Black is clearly winning.} 40. Nf7+ {[%emt 0:00:00]} Kg8 {[%emt 0:00:00][%csl Gf4][%cal Rc3d2]} 41. Ke2 {[%emt 0:07:56]} Qd2+ {[%emt 0:02:36]} 42. Kf1 {[%emt 0:00:05]} Qxd5 {[%emt 0:01:13] Weighted Error Value: White=0.50/Black=0.29 (precise)} 0-1